[Event "Live Chess"]
[Site "Chess.com"]
[Date "2024.06.02"]
[Round "-"]
[White "aleksl1977"]
[Black "WilliamofOrange16th"]
[Result "0-1"]
[WhiteElo "1315"]
[BlackElo "1985"]
[TimeControl "300"]
[EndTime "3:13:09 PDT"]
[Termination "WilliamofOrange16th won by resignation"]

1. e4 {[%clk 0:04:56.6]} 1... d6 {[%clk 0:04:58.9]} 2. d4 {[%clk 0:04:55.1]}
2... Nf6 {[%clk 0:04:55.7]} 3. Nc3 {[%clk 0:04:54.1]} 3... Nbd7 {[%clk
0:04:52.8]} 4. Nf3 {[%clk 0:04:52.3]} 4... e5 {[%clk 0:04:52]} 5. Bg5 {[%clk
0:04:50.7]} 5... c6 {[%clk 0:04:46.2]} 6. Bc4 {[%clk 0:04:48.5]} 6... Be7 {[%clk
0:04:33.7]} 7. O-O {[%clk 0:04:46.9]} 7... O-O {[%clk 0:04:32.3]} 8. a3 {[%clk
0:04:45.7]} 8... exd4 {[%clk 0:04:29.9]} 9. Nxd4 {[%clk 0:04:43.9]} 9... Nc5
{[%clk 0:04:26.8]} 10. Re1 {[%clk 0:04:39.1]} 10... Qc7 {[%clk 0:04:21.6]} 11.
b4 {[%clk 0:04:36.9]} 11... Ne6 {[%clk 0:04:20.6]} 12. Nxe6 {[%clk 0:04:34.3]}
12... fxe6 {[%clk 0:04:20.5]} 13. f3 {[%clk 0:04:28.4]} 13... d5 {[%clk
0:04:14.9]} 14. exd5 {[%clk 0:04:25]} 14... exd5 {[%clk 0:04:13.5]} 15. Bd3
{[%clk 0:04:20.3]} 15... Bd6 {[%clk 0:04:02.3]} 16. g3 {[%clk 0:04:14]} 16...
Bd7 {[%clk 0:03:55.3]} 17. Kg2 {[%clk 0:04:05.7]} 17... Be5 {[%clk 0:03:40.6]}
18. Qd2 {[%clk 0:04:02.3]} 18... a6 {[%clk 0:03:35.5]} 19. Re2 {[%clk 0:04:01]}
19... Rae8 {[%clk 0:03:33.2]} 20. Rae1 {[%clk 0:03:59.8]} 20... Bd4 {[%clk
0:03:30.6]} 21. Rxe8 {[%clk 0:03:52.9]} 21... Rxe8 {[%clk 0:03:29]} 22. Rxe8+
{[%clk 0:03:51.8]} 22... Bxe8 {[%clk 0:03:28.9]} 23. Ne2 {[%clk 0:03:45.4]}
23... Be5 {[%clk 0:03:24.8]} 24. Nf4 {[%clk 0:03:42.2]} 24... Bf7 {[%clk
0:03:21.3]} 25. c3 {[%clk 0:03:33.7]} 25... Qd6 {[%clk 0:02:47.2]} 26. Qe3
{[%clk 0:03:11]} 26... Nd7 {[%clk 0:02:44.5]} 27. Bc2 {[%clk 0:03:03.6]} 27...
Bf6 {[%clk 0:02:38.8]} 28. Bxf6 {[%clk 0:03:00.3]} 28... Nxf6 {[%clk 0:02:38.7]}
29. Qd3 {[%clk 0:02:51.2]} 29... g6 {[%clk 0:02:35.3]} 30. Qe3 {[%clk
0:02:48.9]} 30... Nd7 {[%clk 0:02:29.9]} 31. Nh3 {[%clk 0:02:39.9]} 31... Qe5
{[%clk 0:02:27.9]} 32. Kf2 {[%clk 0:02:33.4]} 32... Kg7 {[%clk 0:02:23.6]} 33.
Ng5 {[%clk 0:02:28.4]} 33... Qxe3+ {[%clk 0:02:14.5]} 34. Kxe3 {[%clk 0:02:27]}
34... Ne5 {[%clk 0:02:13.8]} 35. Nxf7 {[%clk 0:02:23.5]} 35... Kxf7 {[%clk
0:02:13.7]} 36. Bd3 {[%clk 0:02:16.2]} 36... Kf6 {[%clk 0:02:08.6]} 37. h3
{[%clk 0:02:14.8]} 37... g5 {[%clk 0:02:06.7]} 38. f4 {[%clk 0:02:13.5]} 38...
gxf4+ {[%clk 0:02:05.1]} 39. gxf4 {[%clk 0:02:12.5]} 39... Nxd3 {[%clk
0:02:02.7]} 40. Kxd3 {[%clk 0:02:11.3]} 40... Kf5 {[%clk 0:02:01.2]} 41. Ke3
{[%clk 0:02:10.5]} 41... h5 {[%clk 0:01:59.7]} 42. h4 {[%clk 0:02:09.4]} 42...
Kg4 {[%clk 0:01:55.4]} 43. f5 {[%clk 0:02:03.6]} 43... Kxf5 {[%clk 0:01:54.5]}
44. Kf3 {[%clk 0:02:02.9]} 44... b6 {[%clk 0:01:49.3]} 45. a4 {[%clk 0:02:01.9]}
45... a5 {[%clk 0:01:39.5]} 46. bxa5 {[%clk 0:01:57.5]} 46... bxa5 {[%clk
0:01:39.4]} 47. Kg3 {[%clk 0:01:52.3]} 47... Ke4 {[%clk 0:01:37.2]} 0-1

[Event "Live Chess"]
[Site "Chess.com"]
[Date "2024.06.02"]
[Round "-"]
[White "AlexanderMatlak"]
[Black "matt1979"]
[Result "1-0"]
[WhiteElo "2390"]
[BlackElo "1408"]
[TimeControl "300"]
[EndTime "3:13:11 PDT"]
[Termination "AlexanderMatlak won by resignation"]

1. e4 {[%clk 0:04:56]} 1... d6 {[%clk 0:04:58.4]} 2. d4 {[%clk 0:04:54.9]} 2...
Nf6 {[%clk 0:04:57.2]} 3. Nc3 {[%clk 0:04:54.2]} 3... Nbd7 {[%clk 0:04:56.3]} 4.
Bc4 {[%clk 0:04:50.1]} 4... e5 {[%clk 0:04:53.2]} 5. Nf3 {[%clk 0:04:49.4]} 5...
Be7 {[%clk 0:04:47.9]} 6. Bxf7+ {[%clk 0:04:42.3]} 6... Kxf7 {[%clk 0:04:46.6]}
7. Ng5+ {[%clk 0:04:41.7]} 7... Kg8 {[%clk 0:04:33.3]} 8. Ne6 {[%clk 0:04:40.3]}
8... Qe8 {[%clk 0:04:26.1]} 9. Nxc7 {[%clk 0:04:39.6]} 9... Qg6 {[%clk
0:04:23.6]} 10. O-O {[%clk 0:04:38.8]} 10... Nb6 {[%clk 0:04:14.6]} 11. Nxa8
{[%clk 0:04:37]} 11... Bh3 {[%clk 0:04:12.6]} 12. Qf3 {[%clk 0:04:30.6]} 12...
Bg4 {[%clk 0:04:01]} 13. Qd3 {[%clk 0:04:28.9]} 13... Kf7 {[%clk 0:03:52.8]} 14.
Nxb6 {[%clk 0:04:26.8]} 14... axb6 {[%clk 0:03:51.1]} 15. dxe5 {[%clk
0:04:25.8]} 15... dxe5 {[%clk 0:03:40.8]} 16. Nd5 {[%clk 0:04:24.3]} 16... Nxd5
{[%clk 0:03:38]} 17. exd5 {[%clk 0:04:21.7]} 17... Bf5 {[%clk 0:03:29.5]} 18.
Qb3 {[%clk 0:04:20.6]} 18... Bd6 {[%clk 0:03:20.5]} 19. f4 {[%clk 0:04:15]}
19... Bc5+ {[%clk 0:03:12.8]} 20. Be3 {[%clk 0:04:10.8]} 20... Bd6 {[%clk
0:03:06.2]} 21. fxe5 {[%clk 0:04:04.5]} 21... Bxe5 {[%clk 0:03:04.1]} 22. d6+
{[%clk 0:04:04]} 22... Qe6 {[%clk 0:02:36.4]} 23. Rxf5+ {[%clk 0:04:00.6]} 1-0

[Event "Live Chess"]
[Site "Chess.com"]
[Date "2024.06.02"]
[Round "-"]
[White "Cimon"]
[Black "GwaryTek"]
[Result "1-0"]
[WhiteElo "1828"]
[BlackElo "1863"]
[TimeControl "300"]
[EndTime "3:13:12 PDT"]
[Termination "Cimon won on time"]

1. d4 {[%clk 0:04:57.3]} 1... Nf6 {[%clk 0:04:58.3]} 2. Nf3 {[%clk 0:04:55.7]}
2... d6 {[%clk 0:04:57.6]} 3. c4 {[%clk 0:04:53.4]} 3... Nbd7 {[%clk 0:04:57.1]}
4. Nc3 {[%clk 0:04:50.6]} 4... e5 {[%clk 0:04:57]} 5. e4 {[%clk 0:04:48.5]} 5...
Be7 {[%clk 0:04:53.8]} 6. h3 {[%clk 0:04:45.7]} 6... c6 {[%clk 0:04:52.1]} 7.
Be3 {[%clk 0:04:43.9]} 7... O-O {[%clk 0:04:50.5]} 8. Qc2 {[%clk 0:04:37.6]}
8... a6 {[%clk 0:04:45]} 9. Be2 {[%clk 0:04:33.4]} 9... b5 {[%clk 0:04:43.6]}
10. b3 {[%clk 0:04:30.9]} 10... Bb7 {[%clk 0:04:41.3]} 11. d5 {[%clk 0:04:25]}
11... bxc4 {[%clk 0:04:36.6]} 12. bxc4 {[%clk 0:04:23.3]} 12... cxd5 {[%clk
0:04:34]} 13. exd5 {[%clk 0:04:11.5]} 13... Rc8 {[%clk 0:04:25.9]} 14. Rb1
{[%clk 0:04:09]} 14... Ba8 {[%clk 0:04:23.2]} 15. O-O {[%clk 0:04:00.6]} 15...
g6 {[%clk 0:04:02.9]} 16. Rfd1 {[%clk 0:03:36.7]} 16... Nh5 {[%clk 0:03:46.8]}
17. Na4 {[%clk 0:03:20.5]} 17... f5 {[%clk 0:03:40.9]} 18. Bc1 {[%clk
0:03:09.9]} 18... Nc5 {[%clk 0:03:22.8]} 19. Nxc5 {[%clk 0:02:53]} 19... Rxc5
{[%clk 0:03:20.8]} 20. Ba3 {[%clk 0:02:35.6]} 20... Rc8 {[%clk 0:03:00.7]} 21.
Qa4 {[%clk 0:02:29.8]} 21... Nf4 {[%clk 0:02:47.7]} 22. Bf1 {[%clk 0:02:27.6]}
22... g5 {[%clk 0:02:34.9]} 23. c5 {[%clk 0:02:22.4]} 23... g4 {[%clk 0:02:03]}
24. hxg4 {[%clk 0:02:20.5]} 24... fxg4 {[%clk 0:02:02.9]} 25. Nh2 {[%clk
0:02:08.8]} 25... Bh4 {[%clk 0:01:37.7]} 26. g3 {[%clk 0:01:38.9]} 26... Bg5
{[%clk 0:01:20]} 27. Nxg4 {[%clk 0:01:31]} 27... Ng6 {[%clk 0:00:44.9]} 28. c6
{[%clk 0:01:04.8]} 28... h5 {[%clk 0:00:32.6]} 29. Nh2 {[%clk 0:01:03.1]} 29...
Qf6 {[%clk 0:00:24.7]} 30. Rb2 {[%clk 0:00:58]} 30... e4 {[%clk 0:00:01.3]} 31.
Qxe4 {[%clk 0:00:51.4]} 31... Ne5 {[%clk 0:00:00.8]} 32. f4 {[%clk 0:00:46.8]}
1-0

[Event "Live Chess"]
[Site "Chess.com"]
[Date "2024.06.02"]
[Round "-"]
[White "wadsy27"]
[Black "bill77678"]
[Result "1-0"]
[WhiteElo "2573"]
[BlackElo "1839"]
[TimeControl "300"]
[EndTime "3:13:18 PDT"]
[Termination "wadsy27 won by resignation"]

1. d4 {[%clk 0:04:58.5]} 1... d5 {[%clk 0:04:58.9]} 2. c4 {[%clk 0:04:57.7]}
2... e6 {[%clk 0:04:58.4]} 3. Nf3 {[%clk 0:04:56.3]} 3... Nf6 {[%clk 0:04:56.8]}
4. cxd5 {[%clk 0:04:55.5]} 4... exd5 {[%clk 0:04:55.5]} 5. Nc3 {[%clk
0:04:55.2]} 5... c6 {[%clk 0:04:54.4]} 6. Bg5 {[%clk 0:04:54.8]} 6... h6 {[%clk
0:04:48.3]} 7. Bh4 {[%clk 0:04:53.5]} 7... Be7 {[%clk 0:04:47.7]} 8. e3 {[%clk
0:04:52.2]} 8... O-O {[%clk 0:04:46.1]} 9. Bd3 {[%clk 0:04:51.5]} 9... Re8
{[%clk 0:04:44.2]} 10. Qc2 {[%clk 0:04:50.7]} 10... Ne4 {[%clk 0:04:42.3]} 11.
Bxe7 {[%clk 0:04:49.4]} 11... Qxe7 {[%clk 0:04:41.5]} 12. Bxe4 {[%clk
0:04:48.4]} 12... dxe4 {[%clk 0:04:41.4]} 13. Nd2 {[%clk 0:04:46.9]} 13... Bf5
{[%clk 0:04:35.5]} 14. O-O {[%clk 0:04:44.9]} 14... Nd7 {[%clk 0:04:32.1]} 15.
f3 {[%clk 0:04:30.7]} 15... Nf6 {[%clk 0:04:21.5]} 16. fxe4 {[%clk 0:04:28.3]}
16... Bxe4 {[%clk 0:04:15.5]} 17. Ndxe4 {[%clk 0:04:26.9]} 17... Nxe4 {[%clk
0:04:14.2]} 18. Rf3 {[%clk 0:04:25.8]} 18... Ng5 {[%clk 0:04:06.8]} 19. Rg3
{[%clk 0:04:24.3]} 19... Rad8 {[%clk 0:04:02.8]} 20. Rf1 {[%clk 0:04:22.4]}
20... Ne4 {[%clk 0:03:45.9]} 21. Nxe4 {[%clk 0:04:20.5]} 21... Qxe4 {[%clk
0:03:45.8]} 22. Qb3 {[%clk 0:04:19.7]} 22... Re7 {[%clk 0:03:40.9]} 23. Rgf3
{[%clk 0:04:10.6]} 23... Qd5 {[%clk 0:03:34.6]} 24. Qa3 {[%clk 0:04:04.3]} 24...
Qg5 {[%clk 0:03:01.3]} 25. Qxa7 {[%clk 0:03:55.2]} 25... Rde8 {[%clk 0:02:54.8]}
26. Qc5 {[%clk 0:03:46]} 26... Qxc5 {[%clk 0:02:34.7]} 27. dxc5 {[%clk
0:03:45.9]} 27... f6 {[%clk 0:02:33.8]} 28. Kf2 {[%clk 0:03:43.4]} 28... Re5
{[%clk 0:02:24.9]} 29. Rc1 {[%clk 0:03:40.8]} 29... Rd8 {[%clk 0:02:19.3]} 30.
Rc2 {[%clk 0:03:39.9]} 30... Rdd5 {[%clk 0:02:13.1]} 31. b4 {[%clk 0:03:38.8]}
31... Rd3 {[%clk 0:02:09.7]} 32. Rb2 {[%clk 0:03:25]} 32... Ra3 {[%clk
0:02:05.2]} 33. e4 {[%clk 0:03:23.6]} 33... Ra4 {[%clk 0:01:53.6]} 34. Re3
{[%clk 0:03:21.4]} 34... Re8 {[%clk 0:01:46.5]} 35. a3 {[%clk 0:03:17.3]} 35...
Rea8 {[%clk 0:01:44.4]} 36. Rbb3 {[%clk 0:03:16.6]} 36... Kf7 {[%clk 0:01:42.7]}
37. Kf3 {[%clk 0:03:16]} 37... Ke6 {[%clk 0:01:40.2]} 38. Kf4 {[%clk 0:03:15.4]}
38... Rd8 {[%clk 0:01:34.7]} 39. h4 {[%clk 0:03:10.7]} 39... g5+ {[%clk
0:01:30]} 40. Kg4 {[%clk 0:03:07.9]} 40... Raa8 {[%clk 0:01:20.3]} 41. Rbd3
{[%clk 0:02:59]} 41... Rxd3 {[%clk 0:01:12.5]} 42. Rxd3 {[%clk 0:02:58.9]} 42...
Ke5 {[%clk 0:01:12]} 43. hxg5 {[%clk 0:02:53.5]} 43... hxg5 {[%clk 0:01:09.7]}
44. Rd7 {[%clk 0:02:51.9]} 44... Kxe4 {[%clk 0:00:55.5]} 45. Re7+ {[%clk
0:02:43.8]} 45... Kd5 {[%clk 0:00:52.8]} 46. Rxb7 {[%clk 0:02:42.9]} 46... Rxa3
{[%clk 0:00:48.5]} 47. Kf5 {[%clk 0:02:41.6]} 47... Rg3 {[%clk 0:00:45.2]} 48.
Kxf6 {[%clk 0:02:08.2]} 48... Rxg2 {[%clk 0:00:43.8]} 49. Rg7 {[%clk 0:01:58.8]}
49... g4 {[%clk 0:00:42.3]} 50. Ke7 {[%clk 0:01:57]} 50... g3 {[%clk 0:00:39.8]}
51. Kd7 {[%clk 0:01:55.9]} 51... Rb2 {[%clk 0:00:31.7]} 52. Rxg3 {[%clk
0:01:50.4]} 1-0

[Event "Live Chess"]
[Site "Chess.com"]
[Date "2024.06.02"]
[Round "-"]
[White "WorcesterYork"]
[Black "Vladyslav2008"]
[Result "0-1"]
[WhiteElo "2465"]
[BlackElo "2282"]
[TimeControl "300"]
[EndTime "3:13:20 PDT"]
[Termination "Vladyslav2008 won by checkmate"]

1. d3 {[%clk 0:04:57.4]} 1... Nf6 {[%clk 0:04:56.8]} 2. Nd2 {[%clk 0:04:56.3]}
2... d5 {[%clk 0:04:55]} 3. Ngf3 {[%clk 0:04:55.6]} 3... Nc6 {[%clk 0:04:53.7]}
4. g3 {[%clk 0:04:54.5]} 4... e5 {[%clk 0:04:52.6]} 5. Bg2 {[%clk 0:04:54.4]}
5... Be6 {[%clk 0:04:50.5]} 6. O-O {[%clk 0:04:53.7]} 6... Qd7 {[%clk
0:04:48.1]} 7. Ng5 {[%clk 0:04:52]} 7... Bg4 {[%clk 0:04:43.3]} 8. h3 {[%clk
0:04:50.8]} 8... Bh5 {[%clk 0:04:42.1]} 9. g4 {[%clk 0:04:47.9]} 9... Bg6 {[%clk
0:04:40.7]} 10. e4 {[%clk 0:04:41.5]} 10... d4 {[%clk 0:04:30.3]} 11. Nc4 {[%clk
0:04:34.3]} 11... h5 {[%clk 0:04:27.8]} 12. f3 {[%clk 0:04:29.3]} 12... O-O-O
{[%clk 0:04:17.9]} 13. a4 {[%clk 0:04:28.2]} 13... Ng8 {[%clk 0:04:16]} 14. f4
{[%clk 0:04:18.5]} 14... f6 {[%clk 0:04:11.1]} 15. f5 {[%clk 0:04:07.7]} 15...
Bf7 {[%clk 0:03:47.5]} 16. Nxf7 {[%clk 0:04:01.3]} 16... Qxf7 {[%clk 0:03:47.4]}
17. g5 {[%clk 0:03:55.9]} 17... fxg5 {[%clk 0:03:43.8]} 18. Bxg5 {[%clk
0:03:54.3]} 18... Be7 {[%clk 0:03:42.7]} 19. h4 {[%clk 0:03:50.1]} 19... Nf6
{[%clk 0:03:34.6]} 20. Bf3 {[%clk 0:03:45.6]} 20... Kb8 {[%clk 0:03:19.2]} 21.
Kg2 {[%clk 0:03:43.1]} 21... g6 {[%clk 0:03:14.3]} 22. Be2 {[%clk 0:03:37.9]}
22... gxf5 {[%clk 0:03:11.9]} 23. Rxf5 {[%clk 0:03:37]} 23... Qg6 {[%clk
0:03:05.8]} 24. Kh3 {[%clk 0:03:25.4]} 24... Ng4 {[%clk 0:02:55.2]} 25. Bxg4
{[%clk 0:03:19.2]} 25... Bxg5 {[%clk 0:02:52]} 26. Rxg5 {[%clk 0:03:08.3]} 26...
hxg4+ {[%clk 0:02:50.7]} 27. Qxg4 {[%clk 0:03:08.2]} 27... Qf6 {[%clk
0:02:43.1]} 28. Rf5 {[%clk 0:03:04.6]} 28... Qe7 {[%clk 0:02:34.6]} 29. Rg1
{[%clk 0:02:54.3]} 29... a6 {[%clk 0:02:29.4]} 30. Qg5 {[%clk 0:02:50.9]} 30...
Qb4 {[%clk 0:02:23.4]} 31. Nxe5 {[%clk 0:02:43.6]} 31... Nxe5 {[%clk 0:02:21.5]}
32. Rxe5 {[%clk 0:02:43.5]} 32... Qxb2 {[%clk 0:02:19.7]} 33. Rc5 {[%clk
0:02:41.5]} 33... Qb4 {[%clk 0:02:12.2]} 34. Qe5 {[%clk 0:02:34.4]} 34... Rh7
{[%clk 0:02:10.2]} 35. Rd5 {[%clk 0:02:19.1]} 35... Rdh8 {[%clk 0:02:06.3]} 36.
h5 {[%clk 0:02:08.1]} 36... Qd2 {[%clk 0:01:54]} 37. Rg7 {[%clk 0:01:57.2]}
37... Qe3+ {[%clk 0:01:44.3]} 38. Rg3 {[%clk 0:01:55.5]} 38... Qe2 {[%clk
0:01:39.6]} 39. Kh4 {[%clk 0:01:47.3]} 39... Qh2+ {[%clk 0:01:30.2]} 40. Rh3
{[%clk 0:01:42]} 40... Rxh5+ {[%clk 0:01:26.8]} 41. Qxh5 {[%clk 0:01:40.5]}
41... Rxh5+ {[%clk 0:01:25.4]} 42. Rxh5 {[%clk 0:01:40.1]} 42... Qf4# {[%clk
0:01:24.1]} 0-1

[Event "Live Chess"]
[Site "Chess.com"]
[Date "2024.06.02"]
[Round "-"]
[White "Zhevzh1k7"]
[Black "NomisY"]
[Result "0-1"]
[WhiteElo "1107"]
[BlackElo "2266"]
[TimeControl "300"]
[EndTime "3:13:23 PDT"]
[Termination "NomisY won by checkmate"]

1. e4 {[%clk 0:04:57.6]} 1... c6 {[%clk 0:04:58.5]} 2. d4 {[%clk 0:04:56.1]}
2... d5 {[%clk 0:04:56.3]} 3. f3 {[%clk 0:04:55.5]} 3... dxe4 {[%clk 0:04:34.3]}
4. fxe4 {[%clk 0:04:53.7]} 4... e5 {[%clk 0:04:33.4]} 5. Nf3 {[%clk 0:04:53.3]}
5... exd4 {[%clk 0:04:31.2]} 6. Qxd4 {[%clk 0:04:50.5]} 6... Qxd4 {[%clk
0:04:23.1]} 7. Nxd4 {[%clk 0:04:48.8]} 7... Nf6 {[%clk 0:04:22.5]} 8. Nc3 {[%clk
0:04:46.7]} 8... Bb4 {[%clk 0:04:14]} 9. e5 {[%clk 0:04:40.4]} 9... Ne4 {[%clk
0:03:55.5]} 10. Bd2 {[%clk 0:04:33.5]} 10... Nxd2 {[%clk 0:03:46]} 11. Kxd2
{[%clk 0:04:31.8]} 11... O-O {[%clk 0:03:45.1]} 12. a3 {[%clk 0:04:27.7]} 12...
Be7 {[%clk 0:03:38.4]} 13. Bd3 {[%clk 0:04:23.4]} 13... Nd7 {[%clk 0:03:33.8]}
14. Nf3 {[%clk 0:04:08.1]} 14... Nc5 {[%clk 0:03:29.2]} 15. b4 {[%clk
0:04:01.8]} 15... Nxd3 {[%clk 0:03:20.9]} 16. Kxd3 {[%clk 0:03:59.6]} 16... Bf5+
{[%clk 0:03:17.3]} 17. Ke3 {[%clk 0:03:55]} 17... Bxc2 {[%clk 0:03:12.6]} 18.
Rac1 {[%clk 0:03:52.4]} 18... Bf5 {[%clk 0:03:08.1]} 19. Nd4 {[%clk 0:03:47.4]}
19... Bg5+ {[%clk 0:02:57.8]} 20. Kf3 {[%clk 0:03:44.2]} 20... Bxc1 {[%clk
0:02:56.6]} 21. Rxc1 {[%clk 0:03:38.9]} 21... Bg6 {[%clk 0:02:52.6]} 22. h4
{[%clk 0:03:29.6]} 22... Rfe8 {[%clk 0:02:49]} 23. Re1 {[%clk 0:03:26.6]} 23...
Rad8 {[%clk 0:02:42.5]} 24. Nb3 {[%clk 0:03:25.3]} 24... b6 {[%clk 0:02:37.5]}
25. a4 {[%clk 0:03:23.7]} 25... Rd3+ {[%clk 0:02:30]} 26. Re3 {[%clk 0:03:20.3]}
26... Rxe3+ {[%clk 0:02:28.7]} 27. Kxe3 {[%clk 0:03:20.2]} 27... Rxe5+ {[%clk
0:02:27.5]} 28. Kd4 {[%clk 0:03:18]} 28... Re1 {[%clk 0:02:17.3]} 29. b5 {[%clk
0:03:14.3]} 29... cxb5 {[%clk 0:02:07.6]} 30. axb5 {[%clk 0:03:14.2]} 30... Rg1
{[%clk 0:01:57.4]} 31. Ne2 {[%clk 0:03:11.4]} 31... Rxg2 {[%clk 0:01:55.8]} 32.
Nf4 {[%clk 0:03:10.1]} 32... Rg4 {[%clk 0:01:53.9]} 33. Ke5 {[%clk 0:03:05.9]}
33... Rxh4 {[%clk 0:01:52.8]} 34. Nxg6 {[%clk 0:03:04.7]} 34... hxg6 {[%clk
0:01:52.5]} 35. Nd4 {[%clk 0:03:04]} 35... Rxd4 {[%clk 0:01:47.8]} 36. Kxd4
{[%clk 0:03:03]} 36... g5 {[%clk 0:01:47]} 37. Ke4 {[%clk 0:03:02.4]} 37... g4
{[%clk 0:01:45]} 38. Kf4 {[%clk 0:03:01.5]} 38... f5 {[%clk 0:01:44.4]} 39. Kxf5
{[%clk 0:03:00.6]} 39... g3 {[%clk 0:01:42.4]} 40. Ke6 {[%clk 0:02:57.2]} 40...
g2 {[%clk 0:01:41.4]} 41. Kd7 {[%clk 0:02:57.1]} 41... g1=Q {[%clk 0:01:40.2]}
42. Kc7 {[%clk 0:02:56.4]} 42... Qc5+ {[%clk 0:01:37.4]} 43. Kb7 {[%clk
0:02:56.3]} 43... Qxb5 {[%clk 0:01:36.6]} 44. Kxa7 {[%clk 0:02:55.6]} 44... g5
{[%clk 0:01:35.6]} 45. Ka8 {[%clk 0:02:55.2]} 45... g4 {[%clk 0:01:33.8]} 46.
Ka7 {[%clk 0:02:55.1]} 46... g3 {[%clk 0:01:33.1]} 47. Ka8 {[%clk 0:02:55]}
47... g2 {[%clk 0:01:32.3]} 48. Ka7 {[%clk 0:02:54.9]} 48... g1=Q {[%clk
0:01:31]} 49. Ka8 {[%clk 0:02:54.8]} 49... Qa1+ {[%clk 0:01:28.8]} 50. Kb7
{[%clk 0:02:53.8]} 50... Qg7+ {[%clk 0:01:26.2]} 51. Kb8 {[%clk 0:02:53.7]}
51... Qe8# {[%clk 0:01:24.5]} 0-1

[Event "Live Chess"]
[Site "Chess.com"]
[Date "2024.06.02"]
[Round "-"]
[White "seasidecastle27"]
[Black "Delacorta"]
[Result "1-0"]
[WhiteElo "1928"]
[BlackElo "1514"]
[TimeControl "300"]
[EndTime "3:13:28 PDT"]
[Termination "seasidecastle27 won by resignation"]

1. d4 {[%clk 0:04:56.2]} 1... Nf6 {[%clk 0:04:57.6]} 2. Nf3 {[%clk 0:04:55.4]}
2... d6 {[%clk 0:04:53.7]} 3. Bg5 {[%clk 0:04:50.3]} 3... Nbd7 {[%clk
0:04:52.2]} 4. Nbd2 {[%clk 0:04:49.1]} 4... b6 {[%clk 0:04:50.9]} 5. e4 {[%clk
0:04:47.5]} 5... Bb7 {[%clk 0:04:48.3]} 6. Bd3 {[%clk 0:04:46.6]} 6... e5 {[%clk
0:04:34.5]} 7. Qe2 {[%clk 0:04:44.4]} 7... Be7 {[%clk 0:04:30.8]} 8. O-O-O
{[%clk 0:04:36.1]} 8... c5 {[%clk 0:04:26.7]} 9. dxe5 {[%clk 0:04:28.3]} 9...
Nxe5 {[%clk 0:04:22.7]} 10. Nxe5 {[%clk 0:04:22.5]} 10... dxe5 {[%clk
0:04:21.3]} 11. Bb5+ {[%clk 0:04:18.9]} 11... Nd7 {[%clk 0:04:11.6]} 12. Bxe7
{[%clk 0:04:09.5]} 12... Qxe7 {[%clk 0:04:09]} 13. Nc4 {[%clk 0:04:05.7]} 13...
O-O {[%clk 0:04:04.5]} 14. Rxd7 {[%clk 0:04:01.5]} 14... Qg5+ {[%clk 0:04:01.6]}
15. Kb1 {[%clk 0:03:58.2]} 15... a6 {[%clk 0:03:51.9]} 16. Ba4 {[%clk
0:03:47.6]} 16... b5 {[%clk 0:03:50.8]} 17. Rxb7 {[%clk 0:03:43.9]} 17... bxa4
{[%clk 0:03:47.4]} 18. Rd1 {[%clk 0:03:36.5]} 1-0

[Event "Live Chess"]
[Site "Chess.com"]
[Date "2024.06.02"]
[Round "-"]
[White "booktrunk"]
[Black "LL220284LL"]
[Result "0-1"]
[WhiteElo "1500"]
[BlackElo "2500"]
[TimeControl "300"]
[EndTime "3:14:01 PDT"]
[Termination "LL220284LL won by resignation"]

1. d4 {[%clk 0:04:56.8]} 1... c6 {[%clk 0:04:59.2]} 2. a3 {[%clk 0:04:49.2]}
2... g6 {[%clk 0:04:57.7]} 3. Bf4 {[%clk 0:04:35]} 3... Bg7 {[%clk 0:04:50.1]}
4. Nc3 {[%clk 0:04:12]} 4... d6 {[%clk 0:04:47.4]} 5. Rb1 {[%clk 0:04:10.9]}
5... Nd7 {[%clk 0:04:45.4]} 6. e3 {[%clk 0:04:08.4]} 6... Ngf6 {[%clk
0:04:43.9]} 7. Nf3 {[%clk 0:04:06.7]} 7... b5 {[%clk 0:04:39.5]} 8. h3 {[%clk
0:04:04.1]} 8... a6 {[%clk 0:04:37.6]} 9. Bd3 {[%clk 0:04:01.8]} 9... Bb7 {[%clk
0:04:36.4]} 10. Qe2 {[%clk 0:03:59.4]} 10... c5 {[%clk 0:04:35.4]} 11. dxc5
{[%clk 0:03:57.8]} 11... Nxc5 {[%clk 0:04:35.3]} 12. O-O {[%clk 0:03:52.7]}
12... O-O {[%clk 0:04:33.6]} 13. Na2 {[%clk 0:03:46.1]} 13... Nfe4 {[%clk
0:04:30.4]} 14. b4 {[%clk 0:03:40.9]} 14... Nxd3 {[%clk 0:04:27.6]} 15. cxd3
{[%clk 0:03:39.7]} 15... Nf6 {[%clk 0:04:24.4]} 16. Rfc1 {[%clk 0:03:34.9]}
16... Qd7 {[%clk 0:04:21.4]} 17. Nd4 {[%clk 0:03:29.4]} 17... e5 {[%clk
0:04:19.3]} 18. Nf3 {[%clk 0:03:18.8]} 18... exf4 {[%clk 0:04:17.9]} 19. exf4
{[%clk 0:03:18.6]} 19... Rfe8 {[%clk 0:04:16.3]} 20. Qd2 {[%clk 0:03:17.5]}
20... Nd5 {[%clk 0:04:14.8]} 21. Nd4 {[%clk 0:03:15.2]} 21... Bxd4 {[%clk
0:04:13.1]} 0-1